Workbook

Sheet прил. 7 8-е число
H1: Приложение к письму
H2: от 10.01.2017 г. № 12
A4: Анализ исполнения доходной части бюджета сельского поселения Лямина
B5: по состоянию на ___01.01.2017 г.__________
E6: руб.коп.
A7: Код бюджетной классификации | B7: Наименование показателя | C7: План на год (уточненный) | D7: План 1 квартал, полугодие, 9 месяцев | E7: Фактическое исполнение | F7: Процент исполнения | H7: Причина отклонений (фактич.исполнения от плана на год) | I7: Причина отклонений (фактич.исполнения от плана 1 квартал, полугодие, 9 месяцев)
F8: к году | G8: к 1 квартал, полугодие, 9 месяцев
A9: 1 | B9: 2 | C9: 3 | D9: 4 | E9: 5 | F9: гр.6=гр.5/гр.3 | G9: гр.7=гр.5/гр.4 | H9: 8 | I9: 9
A10: НАЛОГОВЫЕ И НЕНАЛОГОВЫЕ ДОХОДЫ | C10: =C11+C13 -> 579453.5 | D10: =D12+D24 -> 579453.5 | E10: =E11+E13 -> 579853.5 | F10: =E10/C10*100 -> 100.0690306 | G10: =E10/D10*100 -> 100.0690306
A11: НАЛОГОВЫЕ ДОХОДЫ | C11: =C12 -> 10250 | D11: =D12 -> 10250 | E11: 10650 | F11: =E11/C11*100 -> 103.902439 | G11: =E11/D11*100 -> 103.902439
A12: 650 1 08 04020 01 0000 110 | B12: Государственная пошлина за совершение нотариальных действий должностными лицами органов местного самоуправления, уполномоченными в соответствии с законодательными актами Российской Федерации на совершение нотариальных действий | C12: 10250 | D12: 10250 | E12: 10650 | F12: =E12/C12*100 -> 103.902439 | G12: =E12/D12*100 -> 103.902439 | H12: Поступления по данному виду доходов зависят от спроса населения на нотариальные услуги
A13: НЕНАЛОГОВЫЕ ДОХОДЫ | C13: =C24 -> 569203.5 | D13: =D24 -> 569203.5 | E13: 569203.5 | F13: =E13/C13*100 -> 100 | G13: =E13/D13*100 -> 100
A14: 650 1 11 05035 10 0000 120 | C14: - | D14: - | F14: =E14/C14 ->  | G14: =E14/D14 -> 
A15: 650 1 11 09045 10 0000 120 | C15: - | D15: -
A16: 650 1 13 01995 10 0000 130 | C16: - | D16: -
A17: 650 1 13 02995 10 0000 130 | C17: - | D17: -
A18: 650 1 14 02052 10 0000 410 | C18: - | D18: -
A19: 650 1 14 02052 10 0000 440 | C19: - | D19: -
A20: 650 1 14 02053 10 0000 410 | C20: - | D20: -
A21: 070 1 14 06013 10 0000 430 | C21: - | D21: -
A22: 000 1 16 00000 00 0000 000 | C22: - | D22: -
A23: … | C23: - | D23: -
A24: 650 1 13 02995 10 0000 130 | B24: Прочие доходы от компенсации затрат бюджетов сельских поселений | C24: 569203.5 | D24: 569203.5 | E24: 569203.5 | F24: =E24/C24*100 -> 100 | G24: =E24/D24*100 -> 100 | H24: Произошло взыскание через судебных приставов, по исполнительному листу серия АС № 006162920 от 12.03.2014 года, от ИП Казанчук Н.Е., в связи с признанием судом сделок недействительными; Возврат излишне уплаченных страховых взносов на обязательное соц.страхование на случай временной нетрудоспособности и в связи с материнством; возврат ошибочно перечисленных средств по платежному поручению№ 671 от 20.0.92016 года в сумме 437 859,43руб.
A25: 000 2 00 00000 00 0000 000 | B25: БЕЗВОЗМЕЗДНЫЕ ПОСТУПЛЕНИЯ | C25: =C26+C27+C28 -> 616580.54 | D25: =D26+D27+D28 -> 616580.54 | E25: =E26+E27+E28 -> 425075.54 | F25: =E25/C25*100 -> 68.94079726 | G25: =E25/D25*100 -> 68.94079726 | H25: Х | I25: Х
A26: 650 2 07 05030 10 0000 180 | B26: Прочие безвозмездные поступления в бюджеты сельских поселений | C26: 391505 | D26: 391505 | E26: 200000 | F26: 51.0849159 | G26: 51.0849159 | H26: По распоряжению от 08.12.2016 г. № 1441-рп департамента финансов Тюменской области денежные средства были выделены в конце года. Финансирование по выделенным денежным средствам в 2016 году не поступило. | I26: Х
A27: 650 2 18 05010 10 0000 151 | B27: Доходы бюджетов сельских поселений от возврата остатков субсидий, субвенций и иных межбюджетных трансфертов, имеющих целевое назначение, прошлых лет из бюджетов муниципальных районов | C27: 753075.54 | D27: 753075.54 | E27: 753075.54 | F27: 100 | G27: 100 | H27: Х | I27: Х
A28: 650 2 19 05000 10 0000 151 | B28: Возврат остатков субсидий, субвенций и иных межбюджетных трансфертов, имеющих целевое назначение, прошлых лет из бюджетов сельских поселений | C28: -528000 | D28: -528000 | E28: -528000 | F28: 100 | G28: 100 | H28: Возвращены остатки субсидий, субвенций и иных межбюджетных трансфертов, имеющих целевое назначение, 2015 года из бюджета сельского поселения Лямина в бюджет Сургутского района | I28: Х
A29: ИТОГО ДОХОДОВ | C29: =C10+C25 -> 1196034.04 | D29: =D10+D25 -> 1196034.04 | E29: =E10+E25 -> 1004929.04 | F29: 84.02177584 | G29: 84.02177584
A31: Примечание: 1.Причины отклонения к плану на год указываются по тем видам доходов, исполнение по которым к плановым назначениям менее 20%, 45%, 70%, 95% и более 30%, 55%, 80%, 105%;
A32: 2.Причины отклонения к квартальному плану указываются по тем видам доходов, исполнение по которым к плановым назначениям менее 95% и более 105%;
A33: 3. НДФЛ и земельный налог не детализировать
A34: 4.Форму заполнять в рублях с копейками.
